[Event "Live Chess"]
[Site "Chess.com"]
[Date "2023.05.21"]
[Round "-"]
[White "Conradical12"]
[Black "HD_IN4k"]
[Result "1-0"]
[WhiteElo "1602"]
[BlackElo "394"]
[TimeControl "300"]
[EndTime "16:32:04 PDT"]
[Termination "Conradical12 won by checkmate"]

1. e4 {[%clk 0:04:56.6]} 1... g6 {[%clk 0:04:51.1]} 2. e5 {[%clk 0:04:53.1]}
2... Bg7 {[%clk 0:04:51]} 3. d4 {[%clk 0:04:52]} 3... Nf6 {[%clk 0:04:50.9]} 4.
exf6 {[%clk 0:04:50.6]} 4... e5 {[%clk 0:04:50.8]} 5. fxg7 {[%clk 0:04:49.3]}
5... Rg8 {[%clk 0:04:49.4]} 6. Bh6 {[%clk 0:04:47.2]} 6... Rxg7 {[%clk
0:04:49.3]} 7. Bxg7 {[%clk 0:04:45.8]} 7... Ke7 {[%clk 0:04:47.8]} 8. Qf3 {[%clk
0:04:43.2]} 8... exd4 {[%clk 0:04:45.7]} 9. Bf6+ {[%clk 0:04:42.5]} 9... Ke8
{[%clk 0:04:42.8]} 10. Bxd8 {[%clk 0:04:42.4]} 10... Kxd8 {[%clk 0:04:42.4]} 11.
Qxf7 {[%clk 0:04:42]} 11... Nc6 {[%clk 0:04:40.8]} 12. Qf8# {[%clk 0:04:40.8]}
1-0

[Event "Live Chess"]
[Site "Chess.com"]
[Date "2023.05.21"]
[Round "-"]
[White "LiamClery2020"]
[Black "KeithArkell"]
[Result "0-1"]
[WhiteElo "2061"]
[BlackElo "2612"]
[TimeControl "300"]
[EndTime "16:32:05 PDT"]
[Termination "KeithArkell won on time"]

1. e4 {[%clk 0:04:56.5]} 1... c6 {[%clk 0:04:59]} 2. d4 {[%clk 0:04:52.5]} 2...
d5 {[%clk 0:04:58.3]} 3. Nc3 {[%clk 0:04:49.7]} 3... dxe4 {[%clk 0:04:57.3]} 4.
Nxe4 {[%clk 0:04:49.6]} 4... Nd7 {[%clk 0:04:56.6]} 5. Nf3 {[%clk 0:04:48.2]}
5... Ngf6 {[%clk 0:04:55.9]} 6. Ng3 {[%clk 0:04:47.5]} 6... c5 {[%clk
0:04:54.7]} 7. dxc5 {[%clk 0:04:43.1]} 7... e6 {[%clk 0:04:53.5]} 8. Bd3 {[%clk
0:04:41]} 8... Nxc5 {[%clk 0:04:52]} 9. O-O {[%clk 0:04:40.5]} 9... Nxd3 {[%clk
0:04:51]} 10. cxd3 {[%clk 0:04:40.2]} 10... Be7 {[%clk 0:04:50.1]} 11. d4 {[%clk
0:04:39.1]} 11... b6 {[%clk 0:04:48.4]} 12. Ne5 {[%clk 0:04:32.2]} 12... Bb7
{[%clk 0:04:43.6]} 13. Qa4+ {[%clk 0:04:31.2]} 13... Nd7 {[%clk 0:04:42.8]} 14.
Bf4 {[%clk 0:04:28.5]} 14... a6 {[%clk 0:04:41.3]} 15. Rac1 {[%clk 0:04:15.1]}
15... b5 {[%clk 0:04:40.4]} 16. Qb3 {[%clk 0:04:13]} 16... Bd5 {[%clk
0:04:38.3]} 17. Qe3 {[%clk 0:04:07.3]} 17... Nxe5 {[%clk 0:04:37.3]} 18. Bxe5
{[%clk 0:04:05.4]} 18... O-O {[%clk 0:04:33.9]} 19. Bc7 {[%clk 0:03:58.4]} 19...
Qd7 {[%clk 0:04:31.7]} 20. Bf4 {[%clk 0:03:43.3]} 20... Bxa2 {[%clk 0:04:28.9]}
21. Rc7 {[%clk 0:03:41.7]} 21... Qd8 {[%clk 0:04:28.1]} 22. Nf5 {[%clk
0:03:25.7]} 22... exf5 {[%clk 0:04:19.6]} 23. Rxe7 {[%clk 0:03:22.4]} 23... Be6
{[%clk 0:04:17.8]} 24. Bg5 {[%clk 0:03:19.3]} 24... Qd5 {[%clk 0:04:14.7]} 25.
Qg3 {[%clk 0:03:09.8]} 25... Kh8 {[%clk 0:04:05.7]} 26. Bf4 {[%clk 0:03:06.3]}
26... Rfe8 {[%clk 0:04:02.8]} 27. Be5 {[%clk 0:03:02.9]} 27... Rg8 {[%clk
0:04:01.6]} 28. Rc1 {[%clk 0:02:48.2]} 28... a5 {[%clk 0:03:57.9]} 29. Rc5
{[%clk 0:02:38.5]} 29... Qe4 {[%clk 0:03:56.2]} 30. h3 {[%clk 0:02:24.3]} 30...
b4 {[%clk 0:03:46.5]} 31. Rcc7 {[%clk 0:02:13.2]} 31... f4 {[%clk 0:03:43.1]}
32. Qg5 {[%clk 0:02:07.4]} 32... Qe1+ {[%clk 0:03:29.5]} 33. Kh2 {[%clk
0:02:06.1]} 33... Qxf2 {[%clk 0:03:28.3]} 34. Bxf4 {[%clk 0:01:50.7]} 34... h6
{[%clk 0:03:09.3]} 35. Qe5 {[%clk 0:01:40.5]} 35... Rae8 {[%clk 0:02:18]} 36.
Bxh6 {[%clk 0:01:26.5]} 36... Qf6 {[%clk 0:02:16.1]} 37. Bf4 {[%clk 0:00:44.1]}
37... Qxe5 {[%clk 0:02:14.4]} 38. Bxe5 {[%clk 0:00:43.6]} 38... Rxe7 {[%clk
0:02:12.8]} 39. Rxe7 {[%clk 0:00:42.6]} 39... Ra8 {[%clk 0:01:57.6]} 40. Rb7
{[%clk 0:00:34.6]} 40... f6 {[%clk 0:01:56.4]} 41. Bd6 {[%clk 0:00:30.9]} 41...
Rd8 {[%clk 0:01:46.2]} 42. Bc7 {[%clk 0:00:28.4]} 42... Rxd4 {[%clk 0:01:44.2]}
43. Bxa5 {[%clk 0:00:27.5]} 43... b3 {[%clk 0:01:34.1]} 44. Bc3 {[%clk
0:00:26.5]} 44... Re4 {[%clk 0:01:26.3]} 45. Rb4 {[%clk 0:00:22.8]} 45... Re2
{[%clk 0:01:22.9]} 46. Rb8+ {[%clk 0:00:21.1]} 46... Kh7 {[%clk 0:01:21.9]} 47.
Rb5 {[%clk 0:00:18]} 47... Kg6 {[%clk 0:01:19.9]} 48. Kg3 {[%clk 0:00:17.4]}
48... Bc4 {[%clk 0:01:18.4]} 49. Rb4 {[%clk 0:00:16]} 49... Bd5 {[%clk
0:01:17.5]} 50. Rg4+ {[%clk 0:00:12.9]} 50... Kf7 {[%clk 0:01:16.9]} 51. Rb4
{[%clk 0:00:11.6]} 51... Rxg2+ {[%clk 0:01:15.8]} 52. Kf4 {[%clk 0:00:11.2]}
52... g5+ {[%clk 0:01:14.7]} 53. Ke3 {[%clk 0:00:08.6]} 53... Be6 {[%clk
0:01:12.1]} 54. Rb7+ {[%clk 0:00:07.6]} 54... Kg6 {[%clk 0:01:11.5]} 55. Rb6
{[%clk 0:00:07.2]} 55... Kf5 {[%clk 0:01:10.2]} 56. Rb5+ {[%clk 0:00:06.3]}
56... Kg6 {[%clk 0:01:09.7]} 57. Rb6 {[%clk 0:00:05.8]} 57... Bxh3 {[%clk
0:01:01.2]} 58. Rxf6+ {[%clk 0:00:04.7]} 58... Kh5 {[%clk 0:01:00.7]} 59. Rf8
{[%clk 0:00:03.7]} 59... Rc2 {[%clk 0:00:53]} 60. Rh8+ {[%clk 0:00:02.8]} 60...
Kg4 {[%clk 0:00:52.5]} 61. Rf8 {[%clk 0:00:00.9]} 61... Kg3 {[%clk 0:00:50.6]}
62. Rb8 {[%clk 0:00:00.3]} 62... Be6 {[%clk 0:00:47.8]} 63. Rg8 {[%clk
0:00:00.2]} 63... g4 {[%clk 0:00:46.8]} 64. Rg5 {[%clk 0:00:00.1]} 64... Bc4
{[%clk 0:00:41.9]} 0-1

[Event "Live Chess"]
[Site "Chess.com"]
[Date "2023.05.21"]
[Round "-"]
[White "sanjesh_ananda"]
[Black "1600x"]
[Result "0-1"]
[WhiteElo "1274"]
[BlackElo "1822"]
[TimeControl "300"]
[EndTime "16:32:43 PDT"]
[Termination "1600x won on time"]

1. e4 {[%clk 0:04:55]} 1... d5 {[%clk 0:04:56.5]} 2. exd5 {[%clk 0:04:48.7]}
2... Qxd5 {[%clk 0:04:54.8]} 3. Nc3 {[%clk 0:04:47.5]} 3... Qe5+ {[%clk
0:04:53.5]} 4. Be2 {[%clk 0:04:39.4]} 4... c5 {[%clk 0:04:50.5]} 5. Nf3 {[%clk
0:04:33.7]} 5... Qf6 {[%clk 0:04:49.2]} 6. Nd5 {[%clk 0:04:02.9]} 6... Qc6
{[%clk 0:04:46.1]} 7. Nc3 {[%clk 0:03:37.3]} 7... Qg6 {[%clk 0:04:27.2]} 8. O-O
{[%clk 0:02:10.7]} 8... Nc6 {[%clk 0:04:20.4]} 9. Nd5 {[%clk 0:02:02.3]} 9...
Qd6 {[%clk 0:04:17.3]} 10. c4 {[%clk 0:01:57.5]} 10... e6 {[%clk 0:04:15.3]} 11.
Ne3 {[%clk 0:01:43.4]} 11... b6 {[%clk 0:04:11.6]} 12. Re1 {[%clk 0:01:28.9]}
12... Bb7 {[%clk 0:04:09.3]} 13. Bf1 {[%clk 0:01:21.4]} 13... O-O-O {[%clk
0:03:56.6]} 14. a4 {[%clk 0:00:57.2]} 14... g6 {[%clk 0:03:52.5]} 15. Ng5 {[%clk
0:00:15.1]} 15... Qe7 {[%clk 0:03:45.5]} 16. f4 {[%clk 0:00:11.8]} 16... e5
{[%clk 0:03:43.8]} 17. d3 {[%clk 0:00:05.2]} 17... Rd4 {[%clk 0:03:35.5]} 18.
Ng4 {[%clk 0:00:00.8]} 18... Nh6 {[%clk 0:03:24.1]} 0-1

[Event "Live Chess"]
[Site "Chess.com"]
[Date "2023.05.21"]
[Round "-"]
[White "HoarseyHorsey"]
[Black "LiamBellwood"]
[Result "0-1"]
[WhiteElo "1433"]
[BlackElo "2061"]
[TimeControl "300"]
[EndTime "16:33:03 PDT"]
[Termination "LiamBellwood won by resignation"]

1. d4 {[%clk 0:04:59.2]} 1... e6 {[%clk 0:04:59.9]} 2. c4 {[%clk 0:04:58.2]}
2... f5 {[%clk 0:04:59.4]} 3. Nc3 {[%clk 0:04:57.3]} 3... Nf6 {[%clk 0:04:58.3]}
4. Bg5 {[%clk 0:04:56.9]} 4... Bb4 {[%clk 0:04:53.8]} 5. e3 {[%clk 0:04:56]}
5... Bxc3+ {[%clk 0:04:51.5]} 6. bxc3 {[%clk 0:04:54.9]} 6... h6 {[%clk
0:04:51.4]} 7. Bxf6 {[%clk 0:04:50.8]} 7... Qxf6 {[%clk 0:04:51.3]} 8. Bd3
{[%clk 0:04:49]} 8... O-O {[%clk 0:04:50.7]} 9. Nf3 {[%clk 0:04:47.1]} 9... b6
{[%clk 0:04:48.4]} 10. O-O {[%clk 0:04:45.5]} 10... Bb7 {[%clk 0:04:47.9]} 11.
Re1 {[%clk 0:04:43.9]} 11... d6 {[%clk 0:04:44.9]} 12. e4 {[%clk 0:04:40.3]}
12... fxe4 {[%clk 0:04:26]} 13. Bxe4 {[%clk 0:04:38.3]} 13... Bxe4 {[%clk
0:04:25.9]} 14. Rxe4 {[%clk 0:04:37.3]} 14... Nd7 {[%clk 0:04:25.8]} 15. Qe2
{[%clk 0:04:29.7]} 15... Rae8 {[%clk 0:04:25.3]} 16. Re1 {[%clk 0:04:28.4]}
16... e5 {[%clk 0:03:41.5]} 17. dxe5 {[%clk 0:04:24.8]} 17... Nxe5 {[%clk
0:03:41.4]} 18. Nxe5 {[%clk 0:04:23.5]} 18... Rxe5 {[%clk 0:03:34.3]} 19. Rxe5
{[%clk 0:04:21.6]} 19... dxe5 {[%clk 0:03:34.2]} 20. Qe3 {[%clk 0:04:14.7]}
20... e4 {[%clk 0:03:27.3]} 21. Re2 {[%clk 0:04:07.8]} 21... Rd8 {[%clk
0:03:25.3]} 22. h3 {[%clk 0:04:05.9]} 22... Qe5 {[%clk 0:03:14.5]} 23. g3 {[%clk
0:04:01.1]} 23... Rd1+ {[%clk 0:02:57.5]} 24. Kh2 {[%clk 0:03:58]} 24... Ra1
{[%clk 0:02:35]} 25. Qd2 {[%clk 0:03:48.6]} 25... c6 {[%clk 0:02:15.7]} 26. Qd4
{[%clk 0:03:33.2]} 26... Qxd4 {[%clk 0:01:46.5]} 27. cxd4 {[%clk 0:03:33.1]}
27... Rc1 {[%clk 0:01:45.9]} 28. d5 {[%clk 0:03:27.1]} 28... Rxc4 {[%clk
0:01:43.7]} 29. Rd2 {[%clk 0:03:22.6]} 29... cxd5 {[%clk 0:01:39.6]} 30. Rxd5
{[%clk 0:03:21.3]} 30... Rc2 {[%clk 0:01:38.2]} 31. Kg2 {[%clk 0:03:17.4]} 31...
Rxa2 {[%clk 0:01:34]} 32. Rd4 {[%clk 0:03:14.8]} 32... e3 {[%clk 0:01:32.6]} 33.
Kf3 {[%clk 0:02:53.5]} 33... exf2 {[%clk 0:01:21.8]} 0-1

[Event "Live Chess"]
[Site "Chess.com"]
[Date "2023.05.21"]
[Round "-"]
[White "mattihelenius2"]
[Black "flyingpuffins"]
[Result "0-1"]
[WhiteElo "489"]
[BlackElo "1964"]
[TimeControl "300"]
[EndTime "16:33:04 PDT"]
[Termination "flyingpuffins won by resignation"]

1. d4 {[%clk 0:04:49.6]} 1... d5 {[%clk 0:04:56.3]} 2. c4 {[%clk 0:04:46.5]}
2... c6 {[%clk 0:04:54.9]} 3. Nf3 {[%clk 0:04:42.5]} 3... Nf6 {[%clk 0:04:54.3]}
4. cxd5 {[%clk 0:04:41.3]} 4... cxd5 {[%clk 0:04:53]} 5. Ne5 {[%clk 0:04:40.2]}
5... Nbd7 {[%clk 0:04:45.5]} 6. Bg5 {[%clk 0:04:40.1]} 6... Nxe5 {[%clk
0:04:43.5]} 7. Bxf6 {[%clk 0:04:38.8]} 7... exf6 {[%clk 0:04:38.7]} 8. dxe5
{[%clk 0:04:37.6]} 8... fxe5 {[%clk 0:04:38.6]} 9. Nc3 {[%clk 0:04:34.9]} 9...
d4 {[%clk 0:04:36.6]} 10. Ne4 {[%clk 0:04:32.2]} 10... Bf5 {[%clk 0:04:34.3]}
11. e3 {[%clk 0:04:31.3]} 11... Bxe4 {[%clk 0:04:31.4]} 12. Bd3 {[%clk
0:04:30.2]} 12... Bb4+ {[%clk 0:04:29]} 13. Kf1 {[%clk 0:04:20.8]} 13... Bxd3+
{[%clk 0:04:27.1]} 14. Qxd3 {[%clk 0:04:19.3]} 14... dxe3 {[%clk 0:04:26.7]} 15.
Qxd8+ {[%clk 0:04:14.9]} 15... Rxd8 {[%clk 0:04:26.6]} 16. Ke2 {[%clk
0:04:11.6]} 16... exf2 {[%clk 0:04:25.6]} 17. Rhd1 {[%clk 0:04:10]} 17... Rxd1
{[%clk 0:04:23.5]} 18. Rxd1 {[%clk 0:04:09.9]} 18... Bc5 {[%clk 0:04:22.3]} 19.
b4 {[%clk 0:04:02.7]} 19... Bb6 {[%clk 0:04:19.6]} 20. a3 {[%clk 0:03:59.6]}
20... O-O {[%clk 0:04:17.2]} 21. g3 {[%clk 0:03:56.5]} 21... f5 {[%clk 0:04:16]}
22. Rd5 {[%clk 0:03:54.7]} 22... f4 {[%clk 0:04:14.2]} 23. Rxe5 {[%clk
0:03:53.4]} 23... fxg3 {[%clk 0:04:12.2]} 24. hxg3 {[%clk 0:03:51.1]} 24...
f1=Q+ {[%clk 0:04:11.3]} 25. Kd2 {[%clk 0:03:28.4]} 25... Rd8+ {[%clk
0:04:11.2]} 26. Kc2 {[%clk 0:03:26]} 26... Qd1+ {[%clk 0:04:07.9]} 27. Kc3
{[%clk 0:03:24.1]} 27... Bd4+ {[%clk 0:04:06.9]} 28. Kc4 {[%clk 0:03:18.9]}
28... Bxe5 {[%clk 0:04:01.4]} 0-1

[Event "Live Chess"]
[Site "Chess.com"]
[Date "2023.05.21"]
[Round "-"]
[White "grillage"]
[Black "ShanthamGrarks"]
[Result "0-1"]
[WhiteElo "1837"]
[BlackElo "2012"]
[TimeControl "300"]
[EndTime "16:33:08 PDT"]
[Termination "ShanthamGrarks won by resignation"]

1. d4 {[%clk 0:04:57.8]} 1... e6 {[%clk 0:04:53.8]} 2. Nf3 {[%clk 0:04:55.4]}
2... f5 {[%clk 0:04:51.6]} 3. d5 {[%clk 0:04:53.6]} 3... d6 {[%clk 0:04:31.9]}
4. dxe6 {[%clk 0:04:35]} 4... Bxe6 {[%clk 0:04:29.9]} 5. Nd4 {[%clk 0:04:33.5]}
5... Bf7 {[%clk 0:04:27.6]} 6. Nxf5 {[%clk 0:04:28]} 6... Nf6 {[%clk 0:04:25.4]}
7. Nc3 {[%clk 0:04:22.9]} 7... Bg6 {[%clk 0:04:22.3]} 8. Nd4 {[%clk 0:04:10.4]}
8... Qd7 {[%clk 0:04:14.5]} 9. e4 {[%clk 0:04:03.8]} 9... Be7 {[%clk 0:04:08.7]}
10. Bc4 {[%clk 0:03:54.9]} 10... Nxe4 {[%clk 0:03:53.3]} 11. Nxe4 {[%clk
0:03:40.8]} 11... Bxe4 {[%clk 0:03:52]} 12. O-O {[%clk 0:03:38.5]} 12... d5
{[%clk 0:03:48.1]} 13. Bd3 {[%clk 0:03:11.9]} 13... Bxd3 {[%clk 0:03:40.7]} 14.
Qxd3 {[%clk 0:03:08.7]} 14... O-O {[%clk 0:03:39.6]} 15. Be3 {[%clk 0:02:59.2]}
15... c5 {[%clk 0:03:35.5]} 16. Nf3 {[%clk 0:02:56.6]} 16... d4 {[%clk
0:03:28.8]} 17. Bg5 {[%clk 0:02:37.8]} 17... Nc6 {[%clk 0:03:20]} 18. a3 {[%clk
0:02:27.2]} 18... Rxf3 {[%clk 0:03:16.4]} 19. Qc4+ {[%clk 0:02:09.3]} 19... Rf7
{[%clk 0:03:13.2]} 20. Bd2 {[%clk 0:01:56.9]} 20... Ne5 {[%clk 0:03:04.1]} 21.
Qe2 {[%clk 0:01:51.4]} 21... Bd6 {[%clk 0:02:55.3]} 0-1

[Event "Live Chess"]
[Site "Chess.com"]
[Date "2023.05.21"]
[Round "-"]
[White "AlanPaling"]
[Black "Missedidea"]
[Result "0-1"]
[WhiteElo "1379"]
[BlackElo "1823"]
[TimeControl "300"]
[EndTime "16:33:13 PDT"]
[Termination "Missedidea won on time"]

1. c4 {[%clk 0:04:54.6]} 1... Nf6 {[%clk 0:04:57.5]} 2. Nc3 {[%clk 0:04:53.2]}
2... g6 {[%clk 0:04:56]} 3. g3 {[%clk 0:04:51.9]} 3... Bg7 {[%clk 0:04:55.1]} 4.
Bg2 {[%clk 0:04:51.2]} 4... O-O {[%clk 0:04:54]} 5. e4 {[%clk 0:04:50.6]} 5...
d6 {[%clk 0:04:52.8]} 6. Nge2 {[%clk 0:04:49.7]} 6... e5 {[%clk 0:04:50.8]} 7.
O-O {[%clk 0:04:48.8]} 7... Be6 {[%clk 0:04:45.9]} 8. d3 {[%clk 0:04:47.6]} 8...
c6 {[%clk 0:04:42]} 9. f4 {[%clk 0:04:46.3]} 9... Qc8 {[%clk 0:04:32.9]} 10. b3
{[%clk 0:04:35.3]} 10... Na6 {[%clk 0:04:29.1]} 11. Bb2 {[%clk 0:04:32.2]} 11...
Ng4 {[%clk 0:04:10.1]} 12. Qd2 {[%clk 0:04:25.5]} 12... Qc7 {[%clk 0:03:51.7]}
13. h3 {[%clk 0:04:17.7]} 13... Qb6+ {[%clk 0:03:48.8]} 14. d4 {[%clk
0:04:12.1]} 14... exd4 {[%clk 0:03:38.8]} 15. Na4 {[%clk 0:04:00.2]} 15... Qb4
{[%clk 0:03:17.6]} 16. Qxb4 {[%clk 0:03:47]} 16... Nxb4 {[%clk 0:03:16]} 17.
hxg4 {[%clk 0:03:34.1]} 17... c5 {[%clk 0:03:07.5]} 18. Rfd1 {[%clk 0:03:05.3]}
18... Bxg4 {[%clk 0:03:05]} 19. Kf2 {[%clk 0:03:02.4]} 19... Nc2 {[%clk
0:02:59.1]} 20. Rac1 {[%clk 0:02:57.5]} 20... Ne3 {[%clk 0:02:56.9]} 21. Re1
{[%clk 0:02:46.6]} 21... Nxg2 {[%clk 0:02:44.7]} 22. Kxg2 {[%clk 0:02:40.8]}
22... Rfe8 {[%clk 0:02:40.8]} 23. e5 {[%clk 0:02:26.2]} 23... b6 {[%clk
0:02:31.8]} 24. Rcd1 {[%clk 0:02:16.4]} 24... dxe5 {[%clk 0:02:29.8]} 25. f5
{[%clk 0:02:09]} 25... Bxf5 {[%clk 0:02:20]} 26. Bc1 {[%clk 0:02:07.3]} 26... e4
{[%clk 0:02:17.2]} 27. Nf4 {[%clk 0:01:55.7]} 27... e3 {[%clk 0:02:14.4]} 28.
Nb2 {[%clk 0:01:48.7]} 28... Be4+ {[%clk 0:02:07.3]} 29. Kg1 {[%clk 0:01:44.2]}
29... Rad8 {[%clk 0:02:03.7]} 30. Nfd3 {[%clk 0:01:39.1]} 30... g5 {[%clk
0:02:00.7]} 31. a4 {[%clk 0:01:33.8]} 31... Bf3 {[%clk 0:01:57.2]} 32. Kh2
{[%clk 0:00:42.5]} 32... Re6 {[%clk 0:01:52.7]} 33. g4 {[%clk 0:00:31]} 33...
Rdd6 {[%clk 0:01:40.7]} 34. Kg3 {[%clk 0:00:27.2]} 34... Bxd1 {[%clk 0:01:37]}
35. Nxd1 {[%clk 0:00:22.2]} 35... h5 {[%clk 0:01:30.2]} 36. gxh5 {[%clk
0:00:09.7]} 36... f5 {[%clk 0:01:21.5]} 0-1

[Event "Live Chess"]
[Site "Chess.com"]
[Date "2023.05.21"]
[Round "-"]
[White "blowerd"]
[Black "domrobson"]
[Result "0-1"]
[WhiteElo "1390"]
[BlackElo "1771"]
[TimeControl "300"]
[EndTime "16:33:34 PDT"]
[Termination "domrobson won on time"]

1. e4 {[%clk 0:04:58.4]} 1... e5 {[%clk 0:04:59.4]} 2. Nf3 {[%clk 0:04:57]} 2...
Nc6 {[%clk 0:04:58.2]} 3. Bc4 {[%clk 0:04:55.8]} 3... Nf6 {[%clk 0:04:56.7]} 4.
Nc3 {[%clk 0:04:53.9]} 4... Nxe4 {[%clk 0:04:55.2]} 5. Nxe4 {[%clk 0:04:52.3]}
5... d5 {[%clk 0:04:54]} 6. Bd3 {[%clk 0:04:50.4]} 6... dxe4 {[%clk 0:04:52.9]}
7. Bxe4 {[%clk 0:04:49.7]} 7... Bg4 {[%clk 0:04:51.4]} 8. O-O {[%clk 0:04:46.9]}
8... Bd6 {[%clk 0:04:49.2]} 9. Bxc6+ {[%clk 0:04:43.1]} 9... bxc6 {[%clk
0:04:48.1]} 10. h3 {[%clk 0:04:42]} 10... Bh5 {[%clk 0:04:46.8]} 11. g4 {[%clk
0:04:39.5]} 11... Bg6 {[%clk 0:04:45.7]} 12. d3 {[%clk 0:04:35.9]} 12... O-O
{[%clk 0:04:44.6]} 13. Bg5 {[%clk 0:04:33]} 13... f6 {[%clk 0:04:41.8]} 14. Be3
{[%clk 0:04:29.2]} 14... e4 {[%clk 0:04:40.6]} 15. dxe4 {[%clk 0:04:27.2]} 15...
Bxe4 {[%clk 0:04:39.5]} 16. c3 {[%clk 0:04:20.2]} 16... Qe7 {[%clk 0:04:37.2]}
17. Nd4 {[%clk 0:04:10.1]} 17... f5 {[%clk 0:04:31.3]} 18. Qb3+ {[%clk
0:04:06.2]} 18... Bd5 {[%clk 0:04:28.8]} 19. c4 {[%clk 0:04:02.1]} 19... Be4
{[%clk 0:04:27.3]} 20. Nxf5 {[%clk 0:03:43.8]} 20... Bxf5 {[%clk 0:04:24.9]} 21.
gxf5 {[%clk 0:03:41.8]} 21... Kh8 {[%clk 0:04:16.4]} 22. c5 {[%clk 0:03:32.9]}
22... Bxc5 {[%clk 0:04:14.4]} 23. Bxc5 {[%clk 0:03:26.6]} 23... Qxc5 {[%clk
0:04:13.3]} 24. Rac1 {[%clk 0:03:25]} 24... Qxf5 {[%clk 0:04:11.7]} 25. Rc3
{[%clk 0:03:15.3]} 25... Rf6 {[%clk 0:04:02.9]} 26. Rg3 {[%clk 0:03:12.8]} 26...
Raf8 {[%clk 0:03:54.1]} 27. Qe3 {[%clk 0:03:07.5]} 27... Qc2 {[%clk 0:03:51.3]}
28. Qg5 {[%clk 0:02:59.2]} 28... Rg6 {[%clk 0:03:48.5]} 29. Qe5 {[%clk
0:02:51.1]} 29... Rxg3+ {[%clk 0:03:45.8]} 30. Qxg3 {[%clk 0:02:49.8]} 30...
Qxb2 {[%clk 0:03:43.3]} 31. Qxc7 {[%clk 0:02:43.4]} 31... Qxa2 {[%clk
0:03:39.9]} 32. Qxc6 {[%clk 0:02:40]} 32... h6 {[%clk 0:03:31.3]} 33. Qg2 {[%clk
0:02:22.4]} 33... Rf6 {[%clk 0:03:27.4]} 34. Qh2 {[%clk 0:02:18.4]} 34... Rg6+
{[%clk 0:03:24.4]} 35. Kh1 {[%clk 0:02:16.6]} 35... Qd5+ {[%clk 0:03:23.2]} 36.
f3 {[%clk 0:02:14.5]} 36... Rf6 {[%clk 0:03:21.3]} 37. Qb8+ {[%clk 0:02:11.8]}
37... Kh7 {[%clk 0:03:20]} 38. Qb1+ {[%clk 0:02:10.3]} 38... Qf5 {[%clk
0:03:15.3]} 39. Qxf5+ {[%clk 0:02:02.7]} 39... Rxf5 {[%clk 0:03:14.3]} 40. Kg2
{[%clk 0:02:01.9]} 40... Ra5 {[%clk 0:03:13.2]} 41. Rb1 {[%clk 0:01:59]} 41...
Ra2+ {[%clk 0:03:12.2]} 42. Kg3 {[%clk 0:01:57.1]} 42... a5 {[%clk 0:03:11.6]}
43. Rb5 {[%clk 0:01:55.4]} 43... a4 {[%clk 0:03:10.8]} 44. Ra5 {[%clk
0:01:54.5]} 44... a3 {[%clk 0:03:10.2]} 45. Kh4 {[%clk 0:01:48.5]} 45... Ra1
{[%clk 0:03:04.9]} 46. f4 {[%clk 0:01:44]} 46... a2 {[%clk 0:03:03.7]} 47. f5
{[%clk 0:01:41.7]} 47... Kg8 {[%clk 0:02:50.4]} 48. Kh5 {[%clk 0:01:30]} 48...
Kf7 {[%clk 0:02:49.3]} 49. h4 {[%clk 0:01:24.5]} 49... Kf6 {[%clk 0:02:47.4]}
50. Ra6+ {[%clk 0:01:05.5]} 50... Kxf5 {[%clk 0:02:45.7]} 51. Ra5+ {[%clk
0:01:04.3]} 51... Ke4 {[%clk 0:02:38.1]} 52. Ra4+ {[%clk 0:00:59.7]} 52... Kd3
{[%clk 0:02:35.7]} 53. Ra8 {[%clk 0:00:56.3]} 53... Kc4 {[%clk 0:02:31]} 54.
Rc8+ {[%clk 0:00:52.7]} 54... Kd5 {[%clk 0:02:30]} 55. Rd8+ {[%clk 0:00:51.1]}
55... Ke6 {[%clk 0:02:29.2]} 56. Re8+ {[%clk 0:00:49.8]} 56... Kf7 {[%clk
0:02:28.3]} 57. Ra8 {[%clk 0:00:48]} 57... Rg1 {[%clk 0:02:27]} 58. Rxa2 {[%clk
0:00:44.8]} 58... g6+ {[%clk 0:02:24.8]} 59. Kxh6 {[%clk 0:00:42.7]} 59... Rh1
{[%clk 0:02:22.5]} 60. Ra7+ {[%clk 0:00:39]} 60... Kf6 {[%clk 0:02:21.4]} 61.
Ra6+ {[%clk 0:00:38.1]} 61... Kf5 {[%clk 0:02:20.9]} 62. Ra5+ {[%clk 0:00:37]}
62... Kf4 {[%clk 0:02:19.5]} 63. Kxg6 {[%clk 0:00:33.4]} 63... Ke3 {[%clk
0:02:15.6]} 64. h5 {[%clk 0:00:31]} 64... Rg1+ {[%clk 0:02:14.6]} 65. Kf6 {[%clk
0:00:29.5]} 65... Rh1 {[%clk 0:02:11.8]} 66. Kg6 {[%clk 0:00:27.6]} 66... Kf4
{[%clk 0:02:10.8]} 67. h6 {[%clk 0:00:26.5]} 67... Rg1+ {[%clk 0:02:09.4]} 68.
Kf7 {[%clk 0:00:24.2]} 68... Rg2 {[%clk 0:02:04.7]} 69. h7 {[%clk 0:00:22.6]}
69... Rh2 {[%clk 0:02:03.7]} 70. Kg8 {[%clk 0:00:19.4]} 70... Rg2+ {[%clk
0:02:02.2]} 71. Kf8 {[%clk 0:00:18.4]} 71... Rh2 {[%clk 0:02:01.1]} 72. Ra4+
{[%clk 0:00:17.1]} 72... Ke5 {[%clk 0:02:00.1]} 73. Kg7 {[%clk 0:00:13.7]} 73...
Rg2+ {[%clk 0:01:57.1]} 74. Kf8 {[%clk 0:00:12.3]} 74... Rh2 {[%clk 0:01:53.1]}
75. Ra5+ {[%clk 0:00:10]} 75... Kf6 {[%clk 0:01:51.4]} 76. Ra6+ {[%clk
0:00:05.2]} 76... Ke5 {[%clk 0:01:47.7]} 77. Kf7 {[%clk 0:00:03.8]} 77... Rf2+
{[%clk 0:01:45.8]} 78. Kg7 {[%clk 0:00:02]} 78... Rg2+ {[%clk 0:01:44.7]} 79.
Kh6 {[%clk 0:00:01.1]} 79... Rh2+ {[%clk 0:01:43.5]} 0-1